fUST/lending_fUST_20240410
["ID","MTS","AMOUNT","RATE_DAILY","PERIOD"]
[322045018,1712717451981,-2120.586962,0.00028098,2]
[322045019,1712717451990,-4109.83124,0.00028098,2]
[322045020,1712717452000,-199.92611,0.00028098,2]
[322045021,1712717452009,-823.0,0.0002813,2]
[322045022,1712717452019,-150.93962415,0.00028132,2]
[322045023,1712717452028,-160.0,0.00028205,5]
[322045024,1712717452037,-1414.77,0.00028217,2]
[322045025,1712717452047,-506.06,0.00028218,2]
[322045026,1712717452056,-944.56,0.00028218,2]
[322045027,1712717452066,-500.0,0.00028218,2]
[322045028,1712717452075,-2044.35,0.00028218,2]
[322045029,1712717452085,-571.14,0.00028218,2]
[322045030,1712717452094,-779.63838048,0.00028219,2]
[322045031,1712717452102,-512.97075115,0.00028219,2]
[322045032,1712717452112,-799.49006732,0.00028219,2]
[322045033,1712717452121,-694.72293633,0.00028219,2]
[322045034,1712717452130,-587.21157708,0.00028219,2]
[322045035,1712717452139,-2874.77346168,0.00028219,2]
[322045036,1712717452149,-703.30165598,0.00028219,2]
[322045037,1712717452158,-5054.96341335,0.00028219,2]
[322045038,1712717452168,-1003.39430496,0.00028219,2]
[322045039,1712717452177,-1056.12862472,0.00028219,2]
[322045040,1712717452186,-3233.36445007,0.00028219,2]
[322045041,1712717452196,-717.63509724,0.00028219,2]
[322045042,1712717452205,-160.0,0.00028315,6]
[322045043,1712717452215,-160.0,0.00028425,7]
[322045044,1712717452225,-4109.83124,0.00028449,2]
[322045045,1712717452234,-2120.586962,0.00028449,2]
[322045046,1712717452243,-1414.77,0.00028491,2]
[322045047,1712717452252,-506.06,0.00028492,2]
[322045048,1712717452261,-944.56,0.00028492,2]
[322045049,1712717452270,-500.0,0.00028492,2]
[322045050,1712717452279,-2044.35,0.00028492,2]
[322045051,1712717452288,-571.14,0.00028492,2]
[322045052,1712717452297,-150.0,0.00028499,2]
[322045053,1712717452307,-1468.89524571,0.00028511,2]
[322045054,1712717452316,-160.0,0.00028534,8]
[322045055,1712717452325,-160.0,0.00028644,9]
[322045056,1712717452334,-166.666666,0.00028679,2]
[322045057,1712717452343,-160.0,0.00028753,10]
[322045058,1712717452352,-1414.77,0.00028765,2]
[322045059,1712717452361,-506.2,0.00028766,2]
[322045060,1712717452370,-944.61598902,0.00028766,2]
[322045061,1712717452379,-429.45563708,0.00028766,2]
[322045062,1712717452388,-2044.56606747,0.00028766,2]
[322045063,1712717452397,-571.28204439,0.00028766,2]
[322045064,1712717452406,-164.14803076,0.00028769,10]
[322045065,1712717452415,-160.0,0.00028769,10]
[322045066,1712717452425,-161225.34112846,0.0002877,2]
[322045067,1712717452437,-2902.51592188,0.0002877,2]
[322045068,1712717452447,-4109.83124,0.000288,2]
[322045069,1712717452456,-2120.586962,0.000288,2]
[322045070,1712717452465,-160.0,0.00028863,11]
[322045071,1712717452476,-160.0,0.00028973,12]
[322045072,1712717452485,-1000.0,0.00029,2]
[322045073,1712717452494,-1414.77,0.00029039,2]
[322045074,1712717452503,-160.0,0.00029082,13]
[322045075,1712717452513,-2120.586962,0.00029151,2]
[322045076,1712717452522,-4109.83124,0.00029151,2]
[322045077,1712717452531,-823.0,0.0002917,2]
[322045078,1712717452540,-160.0,0.00029192,14]
[322045079,1712717452550,-302.263644,0.000292,14]
[322045080,1712717452559,-160.0,0.00029301,15]
[322045081,1712717452567,-1414.99,0.00029313,2]
[322045082,1712717452577,-166.666666,0.00029321,2]
[322045083,1712717452586,-160.0,0.00029411,16]
[322045084,1712717452595,-1468.89524571,0.0002945,2]
[322045085,1712717452604,-150.0,0.00029499,2]
[322045086,1712717452613,-2120.586962,0.00029503,2]
[322045087,1712717452622,-4109.83124,0.00029503,2]
[322045088,1712717452631,-160.0,0.0002952,17]
[322045089,1712717452641,-160.0,0.0002963,18]
[322045090,1712717452650,-160.0,0.0002974,19]
[322045091,1712717452659,-13687.96364579,0.0002978,10]
[322045092,1712717452669,-160.0,0.00029849,20]
[322045093,1712717452678,-160.0,0.00029959,21]
[322045094,1712717452688,-166.666666,0.00029962,2]
[322045095,1712717452697,-160.0,0.00029999,10]
[322045096,1712717452707,-160.74336947,0.00029999,10]
[322045097,1712717452716,-199.99999901,0.0003,2]
[322045098,1712717452726,-154.92253873,0.0003,4]
[322045099,1712717452736,-155.58918056,0.0003,4]
[322045100,1712717452746,-45060.96550244,0.0003,5]
[322045101,1712717452756,-378.2442662,0.0003,10]
[322045102,1712717452765,-0.0870638,0.0003,120]
[322045103,1712717452774,-43517.184017,0.0003,7]
[322045104,1712717452783,-100000.0,0.0003,2]
[322045105,1712717452792,-1013.10269998,0.0003,4]
[322045106,1712717452801,-297.09528203,0.0003,120]
[322045107,1712717452811,-154.95351395,0.0003,4]
[322045108,1712717452820,-277.03434738,0.0003,2]
[322045109,1712717452829,-500.0,0.0003,30]
[322045110,1712717452838,-224.1941708,0.0003,30]
[322045111,1712717452847,-213.0,0.0003,2]
[322045112,1712717452857,-180.0,0.0003,2]
[322045113,1712717452866,-160.0,0.00030068,22]
[322045114,1712717452875,-500.0,0.00030136,2]
[322045115,1712717452884,-400.0,0.00030137,2]
[322045116,1712717452893,-160.0,0.00030178,23]
[322045117,1712717452902,-500.0,0.00030191,2]
[322045118,1712717452911,-500.0,0.00030246,2]
[322045119,1712717452920,-160.0,0.00030288,24]
[322045120,1712717452930,-500.0,0.00030301,2]
[322045121,1712717452939,-500.0,0.00030356,2]
[322045122,1712717452948,-1468.89524571,0.0003039,2]
[322045123,1712717452957,-160.0,0.00030397,25]
[322045124,1712717452966,-500.0,0.0003041,2]
[322045125,1712717452977,-213.0,0.00030411,2]
[322045126,1712717452987,-500.0,0.00030465,2]
[322045127,1712717452996,-150.0,0.00030499,2]
[322045128,1712717453006,-160.0,0.00030507,26]
[322045129,1712717453015,-500.0,0.0003052,2]
[322045130,1712717453024,-500.0,0.00030575,2]
[322045131,1712717453033,-166.666666,0.00030603,2]
[322045132,1712717453042,-160.0,0.00030616,27]
[322045133,1712717453051,-500.0,0.0003063,2]
[322045134,1712717453060,-500.0,0.00030684,2]
[322045135,1712717453069,-160.0,0.00030726,28]
[322045136,1712717453078,-500.0,0.00030739,2]
[322045137,1712717453087,-500.0,0.00030794,2]
[322045138,1712717453097,-160.0,0.00030835,29]
[322045139,1712717453106,-500.0,0.00030849,2]
[322045140,1712717453115,-500.0,0.00030904,2]
[322045141,1712717453124,-160.0,0.00030945,30]
[322045142,1712717453133,-208.66901118,0.00030945,5]
[322045143,1712717453143,-500.0,0.00030958,2]
[322045144,1712717453153,-581.00831557,0.00031,2]
[322045145,1712717453162,-500.0,0.00031013,2]
[322045146,1712717453171,-160.16123696,0.00031068,2]
[322045147,1712717453180,-150.93962415,0.00031258,2]
[322045148,1712717453189,-250.39072371,0.00031258,2]
[322045149,1712717453198,-1468.89524571,0.00031329,2]
[322045150,1712717453207,-2000.0,0.000315,2]
[322045151,1712717453216,-2000.0,0.0003151,2]
[322045152,1712717453227,-2000.0,0.0003152,2]
[322045153,1712717453236,-2000.0,0.0003153,2]
[322045154,1712717453245,-2000.0,0.0003154,2]
[322045155,1712717453255,-2000.0,0.0003155,2]
[322045156,1712717453264,-2000.0,0.0003156,2]
[322045157,1712717453273,-2000.0,0.0003157,2]
[322045158,1712717453282,-2000.0,0.0003158,2]
[322045159,1712717453291,-2000.0,0.0003159,2]
[322045160,1712717453300,-2000.0,0.000316,2]
[322045161,1712717453310,-2000.0,0.0003161,2]
[322045162,1712717453319,-2000.0,0.0003162,2]
[322045163,1712717453329,-2000.0,0.0003163,2]
[322045164,1712717453338,-2000.0,0.0003164,2]
[322045165,1712717453347,-213.0,0.00031644,2]
[322045166,1712717453356,-2000.0,0.0003165,2]
[322045167,1712717453365,-2000.0,0.0003166,2]
[322045168,1712717453374,-2000.0,0.0003167,2]
[322045169,1712717453383,-2000.0,0.0003168,2]
[322045170,1712717453392,-2833.87641,0.0003169,2]
[322045171,1712717453401,-300.700839,0.00031714,2]
[322045172,1712717453410,-197.429845,0.00031714,2]
[322045173,1712717453421,-1957.464887,0.00031714,2]
[322045174,1712717453432,-301.8792483,0.00031783,4]
[322045175,1712717453441,-190.72501436,0.00032,4]
[322045176,1712717453452,-500.0,0.00032,2]
[322045177,1712717453462,-540.67,0.00032,2]
[322045178,1712717453471,-10013.0,0.00032,30]
[322045179,1712717453483,-1152.0,0.00032087,2]
[322045180,1712717453491,-300.700839,0.00032111,2]
[322045181,1712717453501,-1957.464887,0.00032111,2]
[322045182,1712717453511,-1468.89524571,0.00032269,2]
[322045183,1712717453521,-603.7584966,0.00032317,7]
[322045184,1712717453531,-157.3832617,0.00032422,5]
[322045185,1712717453541,-15288.6786,0.00032467,30]
[322045186,1712717453550,-1000.0,0.000325,2]
[322045187,1712717453560,-300.700839,0.00032507,2]
[322045188,1712717453570,-1957.464887,0.00032507,2]
[322045189,1712717453580,-3730.98,0.0003286,5]
[322045190,1712717453589,-166.92714914,0.0003286,4]
[322045191,1712717453600,-192.98589435,0.00032872,4]
[322045192,1712717453610,-300.0749406,0.00032872,4]
[322045193,1712717453704,-400.0,0.00032877,2]
[322045194,1712717453713,-300.700839,0.00032904,2]
[322045195,1712717453722,-1957.464887,0.00032904,2]
[322045196,1712717453732,-180.0,0.00033,2]
[322045197,1712717453741,-180.0,0.00033,2]
[322045198,1712717453751,-1207.5169932,0.00033135,30]
[322045199,1712717453760,-3650.13,0.00033144,2]
[322045200,1712717453769,-3650.13,0.00033144,2]
[322045201,1712717453778,-3650.13,0.00033144,2]
[322045202,1712717453787,-3650.13,0.00033144,2]
[322045203,1712717453796,-3650.13,0.00033144,2]
[322045204,1712717453805,-3650.13,0.00033144,2]
[322045205,1712717453814,-3650.13,0.00033144,2]
[322045206,1712717453824,-3650.13,0.00033144,2]
[322045207,1712717453833,-3650.13,0.00033144,2]
[322045208,1712717453842,-3650.13,0.00033144,2]
[322045209,1712717453851,-230.49890099,0.00033148,4]
[322045210,1712717453860,-290.38720189,0.00033148,4]
[322045211,1712717453869,-592.340571,0.00033165,2]
[322045212,1712717453878,-381.115542,0.00033165,2]
[322045213,1712717453887,-1468.89524571,0.00033208,2]
[322045214,1712717453896,-214.0,0.00033226,2]
[322045215,1712717453907,-300.700839,0.000333,2]
[322045216,1712717453918,-197.429845,0.000333,2]
[322045217,1712717453927,-1957.464887,0.000333,2]
[322045218,1712717453937,-154.0279981,0.00033315,2]
[322045219,1712717453947,-153.0,0.00033315,2]
[322045220,1712717453958,-153.0,0.00033315,2]
[322045221,1712717453967,-153.0,0.00033315,2]
[322045222,1712717453977,-153.0,0.00033315,2]
[322045223,1712717453986,-202.7924704,0.00033315,2]
[322045224,1712717453995,-77194.96156502,0.00033333,3]
[322045225,1712717454004,-306.0,0.00033457,2]
[322045226,1712717454015,-153.0,0.00033808,2]
[322045227,1712717454025,-202.7924704,0.00033808,2]
[322045228,1712717454034,-202.7924704,0.00033808,2]
[322045229,1712717454043,-153.0,0.00033836,2]
[322045230,1712717454052,-202.7418102,0.00033836,2]
[322045231,1712717454060,-464.62767081,0.00034,4]
[322045232,1712717454069,-20384.63167192,0.00034,4]
[322045233,1712717454078,-3264.0,0.00034,120]
[322045234,1712717454087,-202.7924704,0.00034137,2]
[322045235,1712717454095,-367.5726891,0.00034137,2]
[322045236,1712717454104,-202.7924704,0.00034137,2]
[322045237,1712717454113,-202.7924704,0.00034137,2]
[322045238,1712717454122,-202.7924704,0.00034137,2]
[322045239,1712717454131,-202.7924704,0.00034137,2]
[322045240,1712717454140,-202.7924704,0.00034137,2]
[322045241,1712717454151,-1468.89524571,0.00034148,2]
[322045242,1712717454160,-72304.9942,0.00034467,30]
[322045243,1712717454169,-154.90705577,0.0003489,7]
[322045244,1712717454178,-11313.40894,0.000349,2]
[322045245,1712717454187,-205.57,0.0003497,35]
[322045246,1712717454196,-150.5,0.0003497,35]
[322045247,1712717454205,-150.5,0.0003498,35]
[322045248,1712717454214,-150.5,0.0003498,35]
[322045249,1712717454224,-150.5,0.0003499,35]
[322045250,1712717454234,-150.5,0.0003499,35]
[322045251,1712717454243,-596.08980381,0.00035,2]
[322045252,1712717454252,-2000.0,0.00035,2]
[322045253,1712717454261,-764.05133511,0.00035,4]
[322045254,1712717454269,-15114.97834513,0.00035,4]
[322045255,1712717454278,-6855.63770134,0.00035,4]
[322045256,1712717454287,-1000.0,0.00035,2]
[322045257,1712717454296,-154.98450155,0.00035,4]
[322045258,1712717454305,-6335.72753851,0.00035,7]
[322045259,1712717454314,-410.44354497,0.00035,2]
[322045260,1712717454323,-163606.21143233,0.00035,120]
[322045261,1712717454332,-142289.57195167,0.00035,30]
[322045262,1712717454495,-275.108,0.0002198,2]
[322045269,1712718092655,217.2140787,0.0002223,4]
[322045271,1712718286905,174.856418,0.00020648,2]
[322045305,1712718633145,-745.65407704,0.00021794,2]
[322045306,1712718633155,-785.96332301,0.00021794,2]
[322045307,1712718633262,-1307.81423334,0.00021794,2]
[322045308,1712718633273,-470.13868753,0.00021795,2]
[322045309,1712718633284,-157.54768451,0.00021816,2]
[322045310,1712718633293,-300.0,0.00021916,2]
[322045311,1712718633303,-3047.1,0.00021917,2]
[322045312,1712718633312,-500.0,0.00021917,2]
[322045313,1712718633321,-300.0,0.00021978,2]
[322045314,1712718633330,-500.0,0.00021979,2]
[322045315,1712718633339,-500.0,0.00021979,2]
[322045316,1712718633347,-303.47780165,0.00021979,2]
[322045317,1712718633356,-865.12,0.00021979,2]
[322045318,1712718633365,-500.0,0.00021979,2]
[322045319,1712718633375,-500.0,0.00021979,2]
[322045320,1712718633384,-500.0,0.00021979,2]
[322045321,1712718633394,-500.0,0.00021979,2]
[322045322,1712718633403,-500.0,0.00021979,2]
[322045323,1712718633412,-502.71464662,0.00021979,2]
[322045324,1712718633422,-500.0,0.00021979,2]
[322045325,1712718633431,-500.0,0.00021979,2]
[322045326,1712718633440,-447.58491367,0.00021979,2]
[322045327,1712718633449,-267.14404502,0.00021979,2]
[322045328,1712718633458,-3276.89,0.00021979,2]
[322045329,1712718633467,-508.52048383,0.00021979,2]
[322045330,1712718633476,-516.50037743,0.00021979,2]
[322045331,1712718633485,-502.47991004,0.00021979,2]
[322045332,1712718633494,-506.2,0.00021979,2]
[322045333,1712718633504,-500.0,0.00021979,2]
[322045334,1712718633513,-500.0,0.00021979,2]
[322045335,1712718633522,-500.0,0.00021979,2]
[322045336,1712718633531,-500.0,0.00021979,2]
[322045337,1712718633540,-500.0,0.00021979,2]
[322045338,1712718633550,-717.66,0.00021979,2]
[322045339,1712718633559,-500.0,0.00021979,2]
[322045340,1712718633568,-500.0,0.00021979,2]
[322045341,1712718633577,-500.0,0.00021979,2]
[322045342,1712718633590,-1059.97,0.00021979,2]
[322045343,1712718633599,-500.0,0.0002198,2]
[322045344,1712718633609,-500.0,0.0002198,2]
[322045345,1712718633618,-232.06045254,0.0002198,2]
[322045346,1712718633627,-500.0,0.0002198,2]
[322045347,1712718633636,-503.36591404,0.0002198,2]
[322045348,1712718633646,-500.0,0.0002198,2]
[322045349,1712718633655,-500.0,0.0002198,2]
[322045350,1712718633664,-500.0,0.0002198,2]
[322045351,1712718633673,-500.0,0.0002198,2]
[322045352,1712718633683,-500.0,0.0002198,2]
[322045353,1712718633692,-500.0,0.0002198,2]
[322045354,1712718633702,-500.0,0.0002198,2]
[322045355,1712718633711,-500.0,0.0002198,2]
[322045356,1712718633721,-501.22036321,0.0002198,2]
[322045357,1712718633730,-500.0,0.0002198,2]
[322045358,1712718633740,-500.0,0.0002198,2]
[322045359,1712718633749,-500.0,0.0002198,2]
[322045360,1712718633759,-501.75266845,0.0002198,2]
[322045361,1712718633774,-500.0,0.0002198,2]
[322045362,1712718633783,-500.0,0.0002198,2]
[322045363,1712718633793,-589.37,0.0002198,2]
[322045364,1712718633803,-500.0,0.0002198,2]
[322045365,1712718633814,-500.0,0.0002198,2]
[322045366,1712718633824,-604.53256044,0.0002198,2]
[322045367,1712718633838,-500.0,0.0002198,2]
[322045368,1712718633848,-153.90176672,0.00022154,2]
[322045369,1712718633858,-500.0,0.00022187,2]
[322045370,1712718633867,-610.52,0.00022187,2]
[322045371,1712718633876,-500.0,0.00022187,2]
[322045372,1712718633886,-500.0,0.00022187,2]
[322045373,1712718633895,-500.0,0.00022187,2]
[322045374,1712718633905,-500.0,0.00022188,2]
[322045375,1712718633914,-524.892,0.00022188,2]
[322045376,1712718633923,-500.0,0.00022188,2]
[322045377,1712718633934,-381.51373376,0.00022188,2]
[322045378,1712718633944,-500.0,0.00022188,2]
[322045379,1712718633954,-500.0,0.00022188,2]
[322045380,1712718633963,-500.0,0.00022188,2]
[322045381,1712718633973,-500.0,0.00022188,2]
[322045382,1712718633983,-500.0,0.00022188,2]
[322045383,1712718633993,-539.83112468,0.00022189,2]
[322045384,1712718634002,-500.0,0.00022189,2]
[322045385,1712718634012,-500.0,0.00022189,2]
[322045386,1712718634021,-500.0,0.00022189,2]
[322045387,1712718634031,-500.0,0.00022189,2]
[322045388,1712718634041,-487.96641894,0.00022189,2]
[322045389,1712718634050,-500.0,0.00022189,2]
[322045390,1712718634059,-500.0,0.00022189,2]
[322045391,1712718634069,-502.72109709,0.00022189,2]
[322045392,1712718634078,-500.0,0.00022189,2]
[322045393,1712718634095,-500.0,0.00022189,2]
[322045394,1712718634105,-514.65299759,0.00022189,2]
[322045395,1712718634116,-500.0,0.00022189,2]
[322045396,1712718634126,-500.0,0.00022189,2]
[322045397,1712718634136,-500.0,0.00022189,2]
[322045398,1712718634145,-502.77501317,0.00022189,2]
[322045399,1712718634155,-287.07350537,0.00022189,2]
[322045400,1712718634165,-500.0,0.00022189,2]
[322045401,1712718634175,-502.19423038,0.00022189,2]
[322045402,1712718634185,-505.05500064,0.00022189,2]
[322045403,1712718634194,-562.13,0.00022189,2]
[322045404,1712718634204,-500.0,0.00022189,2]
[322045405,1712718634213,-500.0,0.00022189,2]
[322045406,1712718634223,-500.0,0.00022189,2]
[322045407,1712718634232,-500.0,0.00022189,2]
[322045408,1712718634242,-619.7,0.00022189,2]
[322045409,1712718634252,-502.49324911,0.00022189,2]
[322045410,1712718634261,-500.0,0.00022189,2]
[322045411,1712718634271,-500.0,0.00022189,2]
[322045412,1712718634280,-500.0,0.00022189,2]
[322045413,1712718634290,-500.0,0.00022189,2]
[322045414,1712718634300,-500.0,0.00022189,2]
[322045415,1712718634309,-500.0,0.00022189,2]
[322045416,1712718634319,-186.31689819,0.00022189,2]
[322045563,1712718638708,-209.30439523,0.00021879,2]
[322045564,1712718638717,-313.68310181,0.00022189,2]
[322045565,1712718638726,-500.0,0.00022189,2]
[322045566,1712718638735,-500.0,0.00022189,2]
[322045568,1712718638745,-507.40810054,0.00022189,2]
[322045570,1712718638754,-500.0,0.00022189,2]
[322045572,1712718638767,-500.0,0.00022189,2]
[322045574,1712718638776,-333.86640728,0.00022189,2]
[322045577,1712718638788,-166.13359272,0.00022189,2]
[322045579,1712718638797,-500.0,0.00022189,2]
[322045580,1712718638806,-500.0,0.00022189,2]
[322045583,1712718638816,-500.0,0.00022189,2]
[322045585,1712718638826,-500.0,0.00022189,2]
[322045587,1712718638836,-500.0,0.00022189,2]
[322045588,1712718638845,-598.37,0.00022189,2]
[322045590,1712718638855,-504.57433951,0.00022189,2]
[322045592,1712718638864,-500.0,0.00022189,2]
[322045594,1712718638873,-500.0,0.00022189,2]
[322045596,1712718638882,-500.0,0.00022189,2]
[322045598,1712718638891,-500.0,0.00022189,2]
[322045600,1712718638900,-500.0,0.00022189,2]
[322045602,1712718638909,-502.30764519,0.00022189,2]
[322045604,1712718638918,-500.0,0.00022189,2]
[322045606,1712718638926,-500.0,0.00022189,2]
[322045608,1712718638935,-500.0,0.00022189,2]
[322045610,1712718638944,-500.0,0.00022189,2]
[322045612,1712718638953,-500.0,0.00022189,2]
[322045614,1712718638962,-2346.89,0.00022189,2]
[322045616,1712718638971,-500.0,0.00022189,2]
[322045618,1712718638980,-500.0,0.00022189,2]
[322045620,1712718638989,-500.0,0.00022189,2]
[322045622,1712718638998,-500.0,0.00022189,2]
[322045624,1712718639007,-501.0986481,0.00022189,2]
[322045626,1712718639017,-500.0,0.00022189,2]
[322045627,1712718639027,-500.0,0.00022189,2]
[322045629,1712718639036,-500.0,0.00022189,2]
[322045632,1712718639046,-492.16815686,0.00022189,2]
[322045634,1712718639056,-500.0,0.00022189,2]
[322045636,1712718639065,-500.0,0.00022189,2]
[322045638,1712718639074,-502.94347435,0.00022189,2]
[322045640,1712718639085,-500.0,0.00022189,2]
[322045642,1712718639096,-500.0,0.00022189,2]
[322045643,1712718639105,-500.0,0.00022189,2]
[322045645,1712718639114,-500.0,0.00022189,2]
[322045647,1712718639123,-500.0,0.00022189,2]
[322045649,1712718639132,-500.0,0.00022189,2]
[322045651,1712718639141,-506.77631211,0.00022189,2]
[322045653,1712718639151,-500.0,0.0002219,2]
[322045655,1712718639160,-500.0,0.0002219,2]
[322045657,1712718639169,-500.0,0.0002219,2]
[322045659,1712718639178,-500.0,0.0002219,2]
[322045662,1712718639188,-505.41,0.0002219,2]
[322045664,1712718639197,-500.0,0.0002219,2]
[322045665,1712718639206,-500.0,0.0002219,2]
[322045667,1712718639215,-500.0,0.0002219,2]
[322045670,1712718639224,-500.0,0.0002219,2]
[322045671,1712718639233,-500.0,0.0002219,2]
[322045673,1712718639242,-500.0,0.0002219,2]
[322045675,1712718639252,-500.0,0.0002219,2]
[322045678,1712718639262,-3047.1,0.00022191,2]
[322045680,1712718639270,-515.76731302,0.00022191,2]
[322045681,1712718639280,-615.06662611,0.00022252,2]
[322045683,1712718639289,-486.77561449,0.00022252,2]
[322045685,1712718639298,-506.7451759,0.00022253,2]
[322045687,1712718639307,-500.0,0.00022253,2]
[322045690,1712718639317,-865.12,0.00022253,2]
[322045691,1712718639325,-500.0,0.00022253,2]
[322045693,1712718639337,-500.0,0.00022253,2]
[322045695,1712718639346,-500.0,0.00022253,2]
[322045697,1712718639355,-500.0,0.00022253,2]
[322045699,1712718639364,-500.0,0.00022253,2]
[322045701,1712718639373,-505.20185528,0.00022253,2]
[322045703,1712718639382,-500.0,0.00022253,2]
[322045705,1712718639391,-3276.89,0.00022253,2]
[322045707,1712718639401,-506.2,0.00022253,2]
[322045709,1712718639411,-500.0,0.00022253,2]
[322045711,1712718639420,-500.0,0.00022253,2]
[322045713,1712718639429,-500.0,0.00022253,2]
[322045716,1712718639438,-500.0,0.00022253,2]
[322045717,1712718639447,-500.0,0.00022253,2]
[322045719,1712718639456,-717.66,0.00022253,2]
[322045721,1712718639465,-500.0,0.00022253,2]
[322045723,1712718639474,-500.0,0.00022253,2]
[322045725,1712718639482,-500.0,0.00022253,2]
[322045727,1712718639491,-1059.97,0.00022253,2]
[322045729,1712718639500,-500.0,0.00022254,2]
[322045731,1712718639509,-500.0,0.00022254,2]
[322045733,1712718639518,-500.0,0.00022254,2]
[322045735,1712718639527,-500.0,0.00022254,2]
[322045737,1712718639535,-500.0,0.00022254,2]
[322045739,1712718639544,-232.63186136,0.00022254,2]
[322045741,1712718639554,-500.0,0.00022254,2]
[322045743,1712718639563,-500.0,0.00022254,2]
[322045745,1712718639572,-500.0,0.00022254,2]
[322045747,1712718639581,-500.0,0.00022254,2]
[322045749,1712718639591,-500.0,0.00022254,2]
[322045751,1712718639600,-500.0,0.00022254,2]
[322045753,1712718639609,-589.37,0.00022254,2]
[322045755,1712718639618,-500.0,0.00022254,2]
[322045757,1712718639628,-500.0,0.00022254,2]
[322045759,1712718639637,-500.0,0.00022461,2]
[322045761,1712718639646,-610.52,0.00022461,2]
[322045764,1712718639656,-500.0,0.00022461,2]
[322045766,1712718639666,-500.0,0.00022461,2]
[322045767,1712718639675,-500.0,0.00022461,2]
[322045769,1712718639685,-500.0,0.00022462,2]
[322045771,1712718639694,-500.0,0.00022463,2]
[322045773,1712718639703,-500.0,0.00022463,2]
[322045776,1712718639712,-500.0,0.00022463,2]
[322045778,1712718639721,-500.0,0.00022463,2]
[322045779,1712718639731,-500.0,0.00022463,2]
[322045782,1712718639741,-500.0,0.00022463,2]
[322045783,1712718639750,-500.0,0.00022463,2]
[322045785,1712718639760,-500.0,0.00022463,2]
[322045788,1712718639772,-500.0,0.00022463,2]
[322045790,1712718639781,-500.0,0.00022463,2]
[322045792,1712718639791,-562.13,0.00022463,2]
[322045794,1712718639800,-500.0,0.00022463,2]
[322045796,1712718639810,-500.0,0.00022463,2]
[322045798,1712718639819,-619.7,0.00022463,2]
[322045800,1712718639828,-500.0,0.00022463,2]
[322045801,1712718639840,-500.0,0.00022463,2]
[322045815,1712718639953,-500.0,0.00022463,2]
[322045817,1712718639963,-500.0,0.00022463,2]
[322045819,1712718639972,-500.0,0.00022463,2]
[322045821,1712718639981,-500.0,0.00022463,2]
[322045823,1712718639990,-500.0,0.00022463,2]
[322045825,1712718639999,-500.0,0.00022463,2]
[322045827,1712718640008,-500.0,0.00022463,2]
[322045829,1712718640017,-500.0,0.00022463,2]
[322045831,1712718640026,-500.0,0.00022463,2]
[322045833,1712718640036,-500.0,0.00022463,2]
[322045835,1712718640044,-500.0,0.00022463,2]
[322045837,1712718640053,-500.0,0.00022463,2]
[322045839,1712718640063,-500.0,0.00022463,2]
[322045841,1712718640072,-500.0,0.00022463,2]
[322045843,1712718640081,-380.44081084,0.00022463,2]
[322045845,1712718640094,-598.37,0.00022463,2]
[322045847,1712718640103,-500.0,0.00022463,2]
[322045849,1712718640112,-500.0,0.00022463,2]
[322045851,1712718640121,-500.0,0.00022463,2]